bitfinex/quotes_BTCUSD_20240911
["timestamp","ask_amount","ask_price","bid_price","bid_amount"]
[1726041476584,0.17694018,56854.0,56853.0,0.003634]
[1726041476585,0.17794018,56854.0,56853.0,0.003634]
[1726041476816,0.1957342,56854.0,56853.0,0.003634]
[1726041477218,0.21217615,56854.0,56853.0,0.003634]
[1726041477894,0.19438213,56854.0,56853.0,0.003634]
[1726041478151,0.28798213,56854.0,56853.0,0.003634]
[1726041478422,0.37089913,56854.0,56853.0,0.003634]
[1726041479474,0.28879913,56854.0,56853.0,0.003634]
[1726041479904,0.19519913,56854.0,56853.0,0.003634]
[1726041480319,0.22519913,56854.0,56853.0,0.003634]
[1726041480528,0.19519913,56854.0,56853.0,0.003634]
[1726041481623,0.01925895,56854.0,56853.0,0.150234]
[1726041482783,0.01825895,56854.0,56853.0,0.149234]
[1726041482997,0.19419913,56854.0,56853.0,0.002634]
[1726041483914,0.17775718,56854.0,56853.0,0.002634]
[1726041484132,0.19430346,56854.0,56853.0,0.002634]
[1726041484560,0.19430346,56854.0,56853.0,0.001634]
[1726041484561,0.19330346,56854.0,56853.0,0.001634]
[1726041484767,0.19430346,56854.0,56853.0,0.002634]
[1726041484983,0.19530346,56854.0,56853.0,0.003634]
[1726041485198,0.19430346,56854.0,56853.0,0.002634]
[1726041486035,0.25890346,56854.0,56853.0,0.003634]
[1726041486260,0.49217588,56854.0,56853.0,0.003634]
[1726041487155,0.2997406,56854.0,56853.0,0.003634]
[1726041487367,0.31630317,56854.0,56853.0,0.003634]
[1726041487602,0.37693199,56854.0,56853.0,0.003634]
[1726041487836,0.37593199,56854.0,56853.0,0.002634]
[1726041488062,0.37693199,56854.0,56853.0,0.003634]
[1726041488290,0.37593199,56854.0,56853.0,0.002634]
[1726041488888,0.55282099,56854.0,56853.0,0.003634]
[1726041488972,0.37693199,56854.0,56853.0,0.003634]
[1726041489921,0.25270317,56854.0,56853.0,0.003634]
[1726041490635,0.25220317,56854.0,56853.0,0.003634]
[1726041491136,0.25120317,56854.0,56853.0,0.002634]
[1726041491403,0.25220317,56854.0,56853.0,0.003634]
[1726041491648,0.42709217,56854.0,56853.0,0.002634]
[1726041491910,0.42809217,56854.0,56853.0,0.003634]
[1726041492149,0.25220317,56854.0,56853.0,0.003634]
[1726041493287,0.2356406,56854.0,56853.0,0.003634]
[1726041493712,0.2356406,56854.0,56853.0,0.064034]
[1726041493994,0.2346406,56854.0,56853.0,0.063034]
[1726041494423,0.2356406,56854.0,56853.0,0.064034]
[1726041495291,0.2346406,56854.0,56853.0,0.063034]
[1726041495506,0.2346406,56854.0,56853.0,0.002634]
[1726041495743,0.47016946,56854.0,56853.0,0.002634]
[1726041496189,0.47116946,56854.0,56853.0,0.003634]
[1726041496399,0.4105296,56854.0,56853.0,0.002634]
[1726041496635,0.4115296,56854.0,56853.0,0.003634]
[1726041496840,0.7633076,56854.0,56853.0,0.003634]
[1726041497276,0.7623076,56854.0,56853.0,0.002634]
[1726041497481,1.28040455,56854.0,56853.0,0.003634]
[1726041497724,1.81328526,56854.0,56853.0,0.003634]
[1726041498011,1.92433641,56854.0,56853.0,0.002634]
[1726041498269,2.0122868,56854.0,56853.0,0.001634]
[1726041498502,1.90888526,56854.0,56853.0,0.003634]
[1726041498732,2.04063718,56854.0,56853.0,0.002634]
[1726041498980,2.45341518,56854.0,56853.0,0.003634]
[1726041499260,2.45341518,56854.0,56853.0,0.002634]
[1726041499261,2.55165395,56854.0,56853.0,0.002634]
[1726041499469,2.50276326,56854.0,56853.0,0.002634]
[1726041499704,2.5526826,56854.0,56853.0,0.003634]
[1726041499937,2.50176326,56854.0,56853.0,0.002634]
[1726041500411,2.50076326,56854.0,56853.0,0.001634]
[1726041500885,2.50176326,56854.0,56853.0,0.002634]
[1726041501356,2.50076326,56854.0,56853.0,0.001634]
[1726041501580,2.50176326,56854.0,56853.0,0.002634]
[1726041501875,2.50276326,56854.0,56853.0,0.003634]
[1726041502112,2.50076326,56854.0,56853.0,0.001634]
[1726041502348,2.50276326,56854.0,56853.0,0.003634]
[1726041502808,2.50276326,56854.0,56853.0,0.002634]
[1726041502809,1.89956631,56854.0,56853.0,0.002634]
[1726041503052,1.7204636,56854.0,56853.0,0.003634]
[1726041503556,1.7194636,56854.0,56853.0,0.002634]
[1726041503794,1.7214636,56854.0,56853.0,0.002634]
[1726041504038,1.7224636,56854.0,56853.0,0.003634]
[1726041504484,1.89763315,56854.0,56853.0,0.002634]
[1726041504925,1.89863315,56854.0,56853.0,0.002634]
[1726041505140,1.89763315,56854.0,56853.0,0.002634]
[1726041505352,1.89863315,56854.0,56853.0,0.003634]
[1726041505559,1.89763315,56854.0,56853.0,0.002634]
[1726041505780,2.07773586,56854.0,56853.0,0.002634]
[1726041505992,2.07773586,56854.0,56853.0,0.003634]
[1726041505993,2.07873586,56854.0,56853.0,0.003634]
[1726041506229,2.43051386,56854.0,56853.0,0.003634]
[1726041506886,2.91240654,56854.0,56853.0,0.003634]
[1726041507104,2.73876728,56854.0,56853.0,0.003634]
[1726041507327,2.56062854,56854.0,56853.0,0.003634]
[1726041507583,2.93997277,56854.0,56853.0,0.003634]
[1726041508025,0.032,56841.0,56840.0,0.001636]
[1726041508272,2.16692844,56841.0,56840.0,0.001636]
[1726041508539,2.44424531,56841.0,56840.0,0.001636]
[1726041508771,2.22426453,56841.0,56840.0,0.001636]
[1726041509006,2.09238731,56841.0,56840.0,0.001636]
[1726041509221,2.26855686,56841.0,56840.0,0.001636]
[1726041509881,2.42855686,56841.0,56840.0,0.001636]
[1726041510107,2.42855686,56841.0,56840.0,0.002636]
[1726041510108,2.4763526,56841.0,56840.0,0.002636]
[1726041510425,2.8422106,56841.0,56840.0,0.003636]
[1726041510642,2.8282106,56841.0,56840.0,0.002636]
[1726041510857,3.0965106,56841.0,56840.0,0.002636]
[1726041511071,3.1105106,56841.0,56840.0,0.003636]
[1726041511285,3.1095106,56841.0,56840.0,0.002636]
[1726041511497,3.1095106,56841.0,56825.0,0.0024853]
[1726041511498,1.681079,56826.0,56825.0,0.0024853]
[1726041511710,2.33351075,56826.0,56825.0,0.0024853]
[1726041511919,2.25450531,56826.0,56825.0,0.0024853]
[1726041512151,2.60645631,56826.0,56825.0,0.0024853]
[1726041512562,2.73802299,56826.0,56825.0,0.0024853]
[1726041512768,2.90928596,56826.0,56825.0,0.0024853]
[1726041512974,2.77771928,56826.0,56825.0,0.0024853]
[1726041513178,2.79171928,56826.0,56825.0,0.0024853]
[1726041513638,2.92446889,56826.0,56825.0,0.0024853]
[1726041513845,2.92446889,56826.0,56825.0,0.0034853]
[1726041514057,2.91609836,56826.0,56825.0,0.0034853]
[1726041514263,3.04756152,56826.0,56825.0,0.0034853]
[1726041514471,2.90209836,56826.0,56825.0,0.0034853]
[1726041514917,2.90209836,56826.0,56825.0,0.0044853]
[1726041514918,3.37314621,56826.0,56825.0,0.0044853]
[1726041515152,2.34705936,56826.0,56825.0,0.0044853]
[1726041515368,1.52073068,56826.0,56825.0,0.0044853]
[1726041515579,1.46334726,56826.0,56825.0,0.0044853]
[1726041515818,1.43576818,56826.0,56825.0,0.0044853]
[1726041516260,1.42176818,56826.0,56825.0,0.0034853]
[1726041516475,1.96388873,56826.0,56825.0,0.0044853]
[1726041516686,1.95188873,56826.0,56825.0,0.0034853]
[1726041516900,1.95188873,56826.0,56825.0,0.0024853]
[1726041516901,2.06788873,56826.0,56825.0,0.0024853]
[1726041517125,2.19318873,56826.0,56825.0,0.0024853]
[1726041517349,2.19318873,56826.0,56825.0,0.0034853]
[1726041517350,2.20718873,56826.0,56825.0,0.0034853]
[1726041517796,2.19318873,56826.0,56825.0,0.0024853]
[1726041518219,2.22118873,56826.0,56825.0,0.0044853]
[1726041518428,2.20718873,56826.0,56825.0,0.0034853]
[1726041518847,2.22018873,56826.0,56825.0,0.0044853]
[1726041519504,2.14088873,56826.0,56825.0,0.0034853]
[1726041519760,2.14088873,56826.0,56825.0,0.0044853]
[1726041519972,2.15488873,56826.0,56825.0,0.0044853]
[1726041520850,2.15288873,56826.0,56825.0,0.0044853]
[1726041521101,2.15488873,56826.0,56825.0,0.0044853]
[1726041521309,2.12488873,56826.0,56825.0,0.0044853]
[1726041521518,2.09488873,56826.0,56825.0,0.0044853]
[1726041521743,2.12488873,56826.0,56825.0,0.0044853]
[1726041522162,2.11188873,56826.0,56825.0,0.0034853]
[1726041522376,2.11188873,56826.0,56825.0,0.1467853]
[1726041522377,0.028,56826.0,56825.0,0.1467853]
[1726041522593,0.189975,56826.0,56825.0,0.1457853]
[1726041523035,0.907877,56826.0,56825.0,0.1467853]
[1726041523456,1.16060488,56826.0,56825.0,0.1457853]
[1726041523699,0.18994018,56826.0,56825.0,0.1457853]
[1726041523939,0.011,56826.0,56825.0,0.1457853]
[1726041524407,0.175965,56830.0,56825.0,0.1447853]
[1726041524641,0.17594018,56829.0,56825.0,0.1447853]
[1726041524896,0.35190818,56829.0,56825.0,0.1447853]
[1726041525127,0.175971,56828.0,56825.0,0.1447853]
[1726041525385,0.351927,56830.0,56825.0,0.1447853]
[1726041525386,0.35191218,56827.0,56825.0,0.1447853]
[1726041525861,0.019,56826.0,56825.0,0.1467853]
[1726041526092,0.019,56826.0,56825.0,0.1457853]
[1726041526093,0.08528392,56826.0,56825.0,0.1457853]
[1726041526321,0.07228392,56826.0,56825.0,0.1464213]
[1726041526558,0.07228392,56826.0,56825.0,0.1484213]
[1726041526807,0.07228392,56826.0,56825.0,0.1474213]
[1726041527522,0.07728392,56826.0,56825.0,0.1474213]
[1726041527989,0.005,56826.0,56825.0,0.1474213]
[1726041528735,0.005,56826.0,56825.0,0.1464213]
[1726041528971,0.009,56826.0,56825.0,0.1464213]
[1726041535393,0.184975,56826.0,56825.0,0.1464213]
[1726041535648,0.009,56826.0,56825.0,0.1464213]
[1726041536862,0.11547862,56826.0,56825.0,0.1464213]
[1726041537098,0.009,56826.0,56825.0,0.1464213]
[1726041539512,0.184975,56826.0,56825.0,0.1464213]
[1726041540653,0.009,56826.0,56825.0,0.1464213]
[1726041541842,0.184975,56826.0,56825.0,0.1464213]
[1726041542071,0.11547882,56826.0,56825.0,0.1464213]
[1726041542974,0.29145382,56826.0,56825.0,0.1464213]
[1726041543632,0.819345,56826.0,56825.0,0.1464213]
[1726041543843,0.467394,56826.0,56825.0,0.1464213]
[1726041546758,0.291419,56826.0,56825.0,0.1464213]
[1726041547427,0.18494018,56826.0,56825.0,0.1464213]
[1726041548093,0.18494018,56826.0,56825.0,0.32652401]
[1726041548094,0.009,56826.0,56825.0,0.32652401]
[1726041548319,0.000818,56840.0,56827.0,0.0776]
[1726041548537,0.000818,56840.0,56835.0,0.18010271]
[1726041548779,0.000818,56840.0,56828.0,0.17945881]
[1726041548780,0.000818,56840.0,56836.0,0.32200271]
[1726041549011,0.000818,56840.0,56837.0,0.0643]
[1726041549243,0.000818,56840.0,56838.0,0.0776]
[1726041549684,0.009818,56840.0,56838.0,0.0776]
[1726041549928,0.000818,56840.0,56838.0,0.0776]
[1726041550176,0.001818,56840.0,56838.0,0.0776]
[1726041550630,0.000818,56840.0,56838.0,0.0776]
[1726041552187,0.17594018,56839.0,56838.0,0.0776]
[1726041552872,0.17594018,56839.0,56838.0,0.0786]
[1726041553103,0.17594018,56839.0,56838.0,0.0776]
[1726041553625,0.17694018,56839.0,56838.0,0.0776]
[1726041553857,0.17694018,56839.0,56825.0,0.0041213]
[1726041553858,0.175945,56836.0,56832.0,0.1368]
[1726041554098,0.17594018,56835.0,56832.0,0.1368]
[1726041554859,0.351903,56834.0,56827.0,0.0757]
[1726041555110,0.175961,56831.0,56827.0,0.0757]
[1726041555325,0.17594018,56830.0,56827.0,0.0757]
[1726041555806,0.35190418,56830.0,56827.0,0.0757]
[1726041556062,0.17594018,56830.0,56827.0,0.0757]
[1726041556313,0.175969,56828.0,56827.0,0.002]
[1726041556547,0.35190918,56828.0,56827.0,0.001]
[1726041557661,0.4225924,56828.0,56827.0,0.001]
[1726041557876,0.35190918,56828.0,56827.0,0.002]
[1726041558296,0.35190918,56828.0,56827.0,0.001]
[1726041558720,0.35690918,56828.0,56825.0,0.0041213]
[1726041558945,0.17594018,56827.0,56825.0,0.0041213]
[1726041559171,1.49715738,56826.0,56825.0,0.0041213]
[1726041559428,1.77726009,56826.0,56825.0,0.0041213]
[1726041559937,1.82993185,56826.0,56825.0,0.0041213]
[1726041560362,1.82993185,56826.0,56825.0,0.0051213]
[1726041560575,2.0061014,56826.0,56825.0,0.0041213]
[1726041561019,1.95342964,56826.0,56825.0,0.0041213]
[1726041561685,1.96742964,56826.0,56825.0,0.0051213]
[1726041561921,1.79126009,56826.0,56825.0,0.0051213]
[1726041562132,1.80526009,56826.0,56825.0,0.0061213]
[1726041562760,1.80326009,56826.0,56825.0,0.0061213]
[1726041562967,1.62315738,56826.0,56825.0,0.0061213]
[1726041563816,1.67582914,56826.0,56825.0,0.0061213]
[1726041564043,1.79932693,56826.0,56825.0,0.0061213]
[1726041565699,1.85199869,56826.0,56825.0,0.0061213]
[1726041565916,1.85402304,56826.0,56825.0,0.0061213]
[1726041566365,2.03412575,56826.0,56825.0,0.0061213]
[1726041566597,1.98142964,56826.0,56825.0,0.0061213]
[1726041566785,2.06039468,56826.0,56825.0,0.0061213]
[1726041567273,1.98142964,56826.0,56825.0,0.0061213]
[1726041567486,2.52498904,56826.0,56825.0,0.0061213]
[1726041567701,2.39338064,56826.0,56825.0,0.0061213]
[1726041568769,2.53338064,56826.0,56825.0,0.0061213]
[1726041568979,1.92876009,56826.0,56825.0,0.0061213]
[1726041569218,2.06050565,56826.0,56825.0,0.0061213]
[1726041569453,0.96829402,56826.0,56825.0,0.0061213]
[1726041569682,1.62315738,56826.0,56825.0,0.0061213]
[1726041569924,1.70219602,56826.0,56825.0,0.0061213]
[1726041570173,1.88201582,56826.0,56825.0,0.0061213]
[1726041570414,2.03942964,56826.0,56825.0,0.0061213]
[1726041571446,2.04142964,56826.0,56825.0,0.0061213]
[1726041571853,2.45688064,56826.0,56825.0,0.0061213]
[1726041572054,2.21029855,56826.0,56825.0,0.0061213]
[1726041572278,2.21029849,56826.0,56825.0,0.0061213]
[1726041572497,2.18394672,56826.0,56825.0,0.0061213]
[1726041573739,1.2938789,56826.0,56825.0,0.0061213]
[1726041573959,0.36132938,56826.0,56825.0,0.0061213]
[1726041574177,0.028,56826.0,56825.0,0.0061213]
[1726041574384,0.028,56826.0,56825.0,0.1425213]
[1726041575012,0.014,56826.0,56825.0,0.1415213]
[1726041575420,0.028,56826.0,56825.0,0.1425213]
[1726041575631,0.014,56826.0,56825.0,0.1415213]
[1726041575841,0.000818,56830.0,56826.0,0.1364]
[1726041576254,0.000818,56830.0,56827.0,0.0605]
[1726041576458,0.000818,56830.0,56828.0,0.0759]
[1726041576459,0.17594018,56829.0,56828.0,0.0759]
[1726041578166,0.005,56829.0,56828.0,0.1364]
[1726041578581,0.000818,56830.0,56828.0,0.1364]
[1726041579018,0.005,56829.0,56828.0,0.1364]
[1726041579177,0.17594018,56829.0,56828.0,0.1364]
[1726041579354,0.3911781,56829.0,56828.0,0.1364]
[1726041579764,0.7431101,56829.0,56828.0,0.0769]
[1726041580002,0.175975,56826.0,56825.0,0.0041213]
[1726041580200,0.35191518,56826.0,56825.0,0.0041213]
[1726041580692,0.70386618,56826.0,56825.0,0.0041213]
[1726041582061,1.08576343,56826.0,56825.0,0.0041213]
[1726041582266,0.74081243,56826.0,56825.0,0.0051213]
[1726041584015,0.74981243,56826.0,56825.0,0.0061213]
[1726041584520,0.74081243,56826.0,56825.0,0.0051213]
[1726041584841,0.74781243,56826.0,56825.0,0.0061213]
[1726041585305,1.09976343,56826.0,56825.0,0.0061213]
[1726041586908,0.18994018,56826.0,56825.0,0.0061213]
[1726041587130,0.19075818,56826.0,56825.0,0.0061213]
[1726041591202,0.71868418,56826.0,56825.0,0.0061213]
[1726041591493,0.77607389,56826.0,56825.0,0.0061213]
[1726041591724,1.7516786,56826.0,56825.0,0.0061213]
[1726041591951,2.02984815,56826.0,56825.0,0.0061213]
[1726041593265,2.08984815,56826.0,56825.0,0.0061213]
[1726041593715,2.1424945,56826.0,56825.0,0.0061213]
[1726041594143,2.1354945,56826.0,56825.0,0.0051213]
[1726041594400,2.14949797,56826.0,56825.0,0.0061213]
[1726041594602,2.16535834,56826.0,56825.0,0.0061213]
[1726041594815,2.15135834,56826.0,56825.0,0.0051213]
[1726041595301,2.16535834,56826.0,56825.0,0.0061213]
[1726041595761,2.15835834,56826.0,56825.0,0.0051213]
[1726041596206,2.17235834,56826.0,56825.0,0.0051213]
[1726041596447,2.10570852,56826.0,56825.0,0.0041213]
[1726041596691,2.07584815,56826.0,56825.0,0.0041213]
[1726041596886,2.16882288,56826.0,56825.0,0.0041213]
[1726041597123,2.18282288,56826.0,56825.0,0.0041213]
[1726041597339,2.10384815,56826.0,56825.0,0.0041213]
[1726041597562,2.18289119,56826.0,56825.0,0.0041213]
[1726041597771,2.10384815,56826.0,56825.0,0.0041213]
[1726041597992,2.28934815,56826.0,56825.0,0.0041213]
[1726041598203,2.18289137,56826.0,56825.0,0.0041213]
[1726041598430,2.20914779,56826.0,56825.0,0.0041213]
[1726041598865,2.18291693,56826.0,56825.0,0.0041213]
[1726041599078,2.10384815,56826.0,56825.0,0.0041213]
[1726041599517,2.20914779,56826.0,56825.0,0.0041213]
[1726041600164,2.04645844,56826.0,56825.0,0.0041213]
[1726041600392,2.10385656,56826.0,56825.0,0.0041213]
[1726041600619,2.23572564,56826.0,56825.0,0.0041213]
[1726041600851,2.10385656,56826.0,56825.0,0.0041213]
[1726041601319,2.23572794,56826.0,56825.0,0.0041213]
[1726041601562,2.10385656,56826.0,56825.0,0.0041213]
[1726041602272,2.08985656,56826.0,56825.0,0.0041213]
[1726041602479,2.10385656,56826.0,56825.0,0.0051213]
[1726041602901,2.07385656,56826.0,56825.0,0.0051213]
[1726041603111,2.05985656,56826.0,56825.0,0.0051213]
[1726041603541,2.45580756,56826.0,56825.0,0.0051213]
[1726041603757,2.50267601,56826.0,56825.0,0.0051213]
[1726041605093,3.04012701,56826.0,56825.0,0.0051213]
[1726041605303,3.21819131,56826.0,56825.0,0.0051213]
[1726041605534,2.86624031,56826.0,56825.0,0.0051213]
[1726041605748,2.68817601,56826.0,56825.0,0.0051213]
[1726041606204,1.71885275,56826.0,56825.0,0.0041213]
[1726041606419,1.2580333,56826.0,56825.0,0.0041213]
[1726041606651,1.40391654,56826.0,56825.0,0.0051213]
[1726041607134,1.40391654,56826.0,56825.0,0.0061213]
[1726041607135,1.8061888,56826.0,56825.0,0.0061213]
[1726041607379,2.04225656,56826.0,56825.0,0.0061213]
[1726041607595,2.05625656,56826.0,56825.0,0.0061213]
[1726041608466,2.02825656,56826.0,56825.0,0.0041213]
[1726041608685,1.67630556,56826.0,56825.0,0.0041213]
[1726041609112,2.01425656,56826.0,56825.0,0.0041213]
[1726041609329,1.63030556,56826.0,56825.0,0.0041213]
[1726041609580,1.42413601,56826.0,56825.0,0.0041213]
[1726041610027,1.43713601,56826.0,56825.0,0.0041213]
[1726041610453,1.43813601,56826.0,56825.0,0.0041213]
[1726041610703,0.55170944,56826.0,56825.0,0.0041213]
[1726041610915,0.38122809,56826.0,56825.0,0.0807213]
[1726041611147,0.53082863,56826.0,56825.0,0.0807213]
[1726041611364,0.4241313,56826.0,56825.0,0.0807213]
[1726041611792,0.4101313,56826.0,56825.0,0.0807213]
[1726041612034,0.4381313,56826.0,56825.0,0.0807213]
[1726041612466,0.2481563,56826.0,56825.0,0.0807213]
[1726041612676,0.4231313,56826.0,56825.0,0.0807213]
[1726041612894,0.4361313,56826.0,56825.0,0.0807213]
[1726041613119,0.4231313,56826.0,56825.0,0.0807213]
[1726041613589,1.1220333,56826.0,56825.0,0.0807213]
[1726041613855,0.88831876,56826.0,56825.0,0.0807213]
[1726041614074,0.89631876,56826.0,56825.0,0.0807213]
[1726041614732,1.80232347,56826.0,56825.0,0.0041213]
[1726041614954,1.45037247,56826.0,56825.0,0.0041213]
[1726041615202,1.58324094,56826.0,56825.0,0.0041213]
[1726041615407,1.62037247,56826.0,56825.0,0.0041213]
[1726041615638,1.97232347,56826.0,56825.0,0.0041213]
[1726041615872,1.61337247,56826.0,56825.0,0.0041213]
[1726041616099,1.95632347,56826.0,56825.0,0.0041213]
[1726041616314,1.96432347,56826.0,56825.0,0.0041213]
[1726041616775,1.61237247,56826.0,56825.0,0.0041213]
[1726041617321,1.96432347,56826.0,56825.0,0.0041213]
[1726041617427,1.61237247,56826.0,56825.0,0.0041213]
[1726041617867,1.61937247,56826.0,56825.0,0.0041213]
[1726041618093,1.60937247,56826.0,56825.0,0.0041213]
[1726041618313,1.48413601,56826.0,56825.0,0.0041213]
[1726041618539,1.85508701,56826.0,56825.0,0.0041213]
[1726041618763,1.50313601,56826.0,56825.0,0.0041213]
[1726041618991,1.48613601,56826.0,56825.0,0.0041213]
[1726041619220,1.66465866,56826.0,56825.0,0.0041213]
[1726041619685,1.67865866,56826.0,56825.0,0.0041213]
[1726041619903,1.66465866,56826.0,56825.0,0.0041213]
[1726041620125,1.69223704,56826.0,56825.0,0.0041213]
[1726041620972,1.67823704,56826.0,56825.0,0.0041213]
[1726041621652,2.03018804,56826.0,56825.0,0.0041213]
[1726041621899,2.05718804,56826.0,56825.0,0.0041213]
[1726041622342,2.04318804,56826.0,56825.0,0.0041213]
[1726041622557,2.05618804,56826.0,56825.0,0.0041213]
[1726041623682,1.70423704,56826.0,56825.0,0.0041213]
[1726041623910,1.70223704,56826.0,56825.0,0.0041213]
[1726041624145,0.65783739,56826.0,56825.0,0.0041213]
[1726041624350,0.65983739,56826.0,56825.0,0.0041213]
[1726041624564,0.65783739,56826.0,56825.0,0.0041213]
[1726041625476,0.65983739,56826.0,56825.0,0.0041213]
[1726041625689,0.70604289,56826.0,56825.0,0.0041213]
[1726041625899,0.70804289,56826.0,56825.0,0.0041213]
[1726041626756,0.70604289,56826.0,56825.0,0.0041213]
[1726041627957,0.69304289,56826.0,56825.0,0.0041213]
[1726041628194,0.69404289,56826.0,56825.0,0.0041213]
[1726041628429,0.70604289,56826.0,56825.0,0.0041213]
[1726041629354,0.70404289,56826.0,56825.0,0.0041213]
[1726041629613,0.70604289,56826.0,56825.0,0.0041213]
[1726041629824,0.88201789,56826.0,56825.0,0.0041213]
[1726041630281,0.03,56815.0,56814.0,0.080834]
[1726041630497,0.34251947,56815.0,56814.0,0.080834]
[1726041630710,0.3633383,56815.0,56814.0,0.080834]
[1726041631143,0.46891948,56815.0,56814.0,0.080834]
[1726041631360,0.3633383,56815.0,56814.0,0.080834]
[1726041631625,0.41121658,56815.0,56814.0,0.080834]
[1726041631878,0.67049911,56815.0,56814.0,0.080834]
[1726041632077,0.59931929,56815.0,56814.0,0.080834]
[1726041632305,0.59131929,56815.0,56814.0,0.080834]
[1726041632532,0.67050051,56815.0,56814.0,0.080834]
[1726041632763,0.67350051,56815.0,56814.0,0.080834]
[1726041632994,0.59431929,56815.0,56814.0,0.080834]
[1726041633264,0.67349871,56815.0,56814.0,0.080834]
[1726041633753,0.67649871,56815.0,56814.0,0.080834]
[1726041634001,0.67349871,56815.0,56814.0,0.080834]
[1726041634227,0.68149871,56815.0,56814.0,0.080834]
[1726041634462,0.59431929,56815.0,56814.0,0.080834]
[1726041634924,0.60031929,56815.0,56814.0,0.080834]
[1726041635152,0.60931929,56815.0,56814.0,0.080834]
[1726041635422,0.71490047,56815.0,56814.0,0.080834]
[1726041635637,0.70590047,56815.0,56814.0,0.080834]
[1726041636126,0.71590047,56815.0,56814.0,0.080834]
[1726041636395,0.61031929,56815.0,56814.0,0.080834]
[1726041636862,0.71595084,56815.0,56814.0,0.080834]
[1726041637346,0.74229576,56815.0,56814.0,0.080834]
[1726041638723,0.61031929,56815.0,56814.0,0.080834]
[1726041639184,0.73229576,56815.0,56814.0,0.080834]
[1726041639418,0.90830476,56815.0,56814.0,0.080834]
[1726041639652,0.91930476,56815.0,56814.0,0.080834]
[1726041639870,0.91030476,56815.0,56814.0,0.080834]
[1726041640122,0.92130476,56815.0,56814.0,0.080834]
[1726041640838,0.91030476,56815.0,56814.0,0.080834]
[1726041641078,0.89930476,56815.0,56814.0,0.080834]
[1726041641311,0.91030476,56815.0,56814.0,0.080834]
[1726041641538,1.13034729,56815.0,56814.0,0.080834]
[1726041641768,1.23599043,56815.0,56814.0,0.080834]
[1726041642225,1.24599015,56815.0,56814.0,0.080834]
[1726041642461,1.2459895,56815.0,56814.0,0.080834]
[1726041642699,1.14034729,56815.0,56814.0,0.080834]
[1726041643226,1.11934729,56815.0,56814.0,0.080834]
[1726041643458,1.12934729,56815.0,56814.0,0.001634]
[1726041643686,1.47336629,56815.0,56814.0,0.001634]
[1726041643919,1.82538529,56815.0,56814.0,0.001634]
[1726041644379,1.83638529,56815.0,56814.0,0.001634]
[1726041644889,1.89538529,56815.0,56814.0,0.001634]
[1726041645376,1.89838529,56815.0,56814.0,0.001634]
[1726041645846,1.91238529,56815.0,56814.0,0.001634]
[1726041646333,1.89838529,56815.0,56814.0,0.001634]
[1726041646784,1.91238529,56815.0,56814.0,0.001634]
[1726041647055,1.89938529,56815.0,56814.0,0.001634]
[1726041647280,1.91338529,56815.0,56814.0,0.001634]
[1726041647504,1.89938529,56815.0,56814.0,0.001634]
[1726041648000,1.91338529,56815.0,56814.0,0.001634]
[1726041648259,2.25140429,56815.0,56814.0,0.001634]
[1726041648512,2.23740429,56815.0,56814.0,0.001634]
[1726041648757,2.43690429,56815.0,56814.0,0.001634]
[1726041648985,2.49777274,56815.0,56814.0,0.001634]
[1726041649734,2.46977274,56815.0,56814.0,0.001634]
[1726041649966,2.48377274,56815.0,56814.0,0.001634]
[1726041650197,2.49777274,56815.0,56814.0,0.001634]
[1726041650427,2.48377274,56815.0,56814.0,0.001634]
[1726041650893,2.49777274,56815.0,56814.0,0.001634]
[1726041651114,2.48377274,56815.0,56814.0,0.001634]
[1726041651596,2.49777274,56815.0,56814.0,0.001634]
[1726041652594,2.49781274,56815.0,56814.0,0.001634]
[1726041652845,2.46981274,56815.0,56814.0,0.001634]
[1726041653081,2.49781274,56815.0,56814.0,0.001634]
[1726041653552,2.48381274,56815.0,56814.0,0.001634]
[1726041653773,2.49781274,56815.0,56814.0,0.001634]
[1726041653994,2.84983174,56815.0,56814.0,0.001634]
[1726041654440,2.97903174,56815.0,56814.0,0.001634]
[1726041654935,3.15708332,56815.0,56814.0,0.001634]
[1726041655394,3.17108332,56815.0,56814.0,0.001634]
[1726041655835,3.14308332,56815.0,56814.0,0.001634]
[1726041656267,3.17108332,56815.0,56814.0,0.001634]
[1726041656495,2.97903174,56815.0,56814.0,0.001634]
[1726041656968,2.99303174,56815.0,56814.0,0.001634]
[1726041657410,2.97903174,56815.0,56814.0,0.001634]
[1726041657625,3.14308332,56815.0,56814.0,0.001634]
[1726041657852,3.15708332,56815.0,56814.0,0.001634]
[1726041658072,3.50910232,56815.0,56814.0,0.001634]
[1726041658292,1.861612,56814.0,56813.0,0.00241659]
[1726041658543,2.37111985,56814.0,56813.0,0.00241659]
[1726041658776,2.77602228,56814.0,56813.0,0.00241659]
[1726041659003,2.80360949,56814.0,56813.0,0.00241659]
[1726041659443,2.80360949,56814.0,56813.0,0.00405259]
[1726041659884,2.81760949,56814.0,56813.0,0.00405259]
[1726041660365,2.11355949,56814.0,56813.0,0.00405259]
[1726041660591,2.09955949,56814.0,56813.0,0.00405259]
[1726041660814,2.11355949,56814.0,56813.0,0.00405259]
[1726041661070,2.47958449,56814.0,56813.0,0.00405259]
[1726041661556,2.46558449,56814.0,56813.0,0.00405259]
[1726041661794,2.47958449,56814.0,56813.0,0.00405259]
[1726041662024,2.30165322,56814.0,56813.0,0.00405259]
[1726041662252,2.28765322,56814.0,56813.0,0.00405259]
[1726041662735,2.30165322,56814.0,56813.0,0.00405259]
[1726041662956,2.46558449,56814.0,56813.0,0.00405259]
[1726041663437,2.30165322,56814.0,56813.0,0.00405259]
[1726041663688,2.43571376,56814.0,56813.0,0.00405259]
[1726041663917,2.3047192,56814.0,56813.0,0.00405259]
[1726041664156,2.5285852,56814.0,56813.0,0.00405259]
[1726041664385,2.3507192,56814.0,56813.0,0.00405259]
[1726041664633,2.3647192,56814.0,56813.0,0.00405259]
[1726041664867,2.36165322,56814.0,56813.0,0.00405259]
[1726041665106,2.33365322,56814.0,56813.0,0.00405259]
[1726041665342,2.34765322,56814.0,56813.0,0.00405259]
[1726041665571,2.31478477,56814.0,56813.0,0.00405259]
[1726041665800,2.30078477,56814.0,56813.0,0.00405259]
[1726041666493,2.31478477,56814.0,56813.0,0.00405259]
[1726041666727,2.30078477,56814.0,56813.0,0.00405259]
[1726041666963,2.31478477,56814.0,56813.0,0.00405259]
[1726041668115,0.972157,56808.0,56807.0,0.001634]
[1726041668368,1.48559801,56808.0,56807.0,0.001634]
[1726041668943,1.51318645,56808.0,56807.0,0.001634]
[1726041669386,1.52718645,56808.0,56807.0,0.001634]
[1726041669607,1.52718645,56808.0,56807.0,0.078034]
[1726041669828,1.703356,56808.0,56807.0,0.078034]
[1726041670051,1.717356,56808.0,56807.0,0.078034]